Cogmind - Beta 9.6 @@@ ROGUE MODE // 2020.08.09 @ 17:17:56 Player: Skitgris Result: Destroyed by S-10 Pest with Light Assault Rifle Performance ------------- Evolutions (0) 0 Regions Visited (1) 200 Robots Destroyed (0) 0 Value Destroyed (0) 0 Prototype IDs (0) 0 Alien Tech Used (0) 0 Bonus (0) 0 TOTAL SCORE: 200 Bonus ------- None Cogmind --------- Core Integrity 0/250 Matter 251/300 Energy 250/250 System Corruption 1% Temperature Cool (0) Movement Core (100) Ox1 Location -10/Materials Parts ------- > --- POWER (1) -------- Ion Engine > --- PROPULSION (2) --- (None) > --- UTILITY (2) ------ (None) > --- WEAPON (2) ------- (None) > --- INVENTORY (4) ---- (None) Peak State ------------ > --- POWER ------------ Ion Engine > --- PROPULSION ------- Wheel Compact Wheel > --- UTILITY ---------- Small Storage Unit > --- WEAPON ----------- EM Pulse Gun Medium Laser > --- INVENTORY -------- Ion Engine Light Treads Small Laser [Rating: 6] Favorites ----------- Power Ion Engine Engine Ion Engine Propulsion Flight Unit Wheel Compact Wheel Flight Unit Flight Unit Utility Small Storage Unit Storage Small Storage Unit Weapon EM Pulse Gun Energy Gun EM Pulse Gun Special Melee Weapon Datajack Build | -11 -10 ------- Run | Scr Mat Slots Evolved . | . . Power . | . . Propulsion . | . . Utility . | . . Weapon . | . . Parts Attached 13 | 6 7 Power 1 | 1 . Engine 1 | 1 . Core . | . . Reactor . | . . Propulsion 6 | 2 4 Treads . | . . Leg . | . . Wheel 2 | 2 . Hover . | . . Flight 4 | . 4 Utility 1 | 1 . Device . | . . Storage 1 | 1 . Processor . | . . Hackware . | . . Protection . | . . Artifact . | . . Weapon 5 | 2 3 Energy Gun 4 | 2 2 Energy Cannon . | . . Ballistic Gun . | . . Ballistic Cannon . | . . Launcher . | . . Special Weapon . | . . Impact Weapon . | . . Slashing Weapon . | . . Piercing Weapon . | . . Special Melee Weapon 1 | . 1 Unidentified Prototypes . | . . Parts Lost 8 | . 8 Power . | . . Propulsion 4 | . 4 Utility . | . . Weapon 4 | . 4 Highest Loss Streak 3 | . 3 Average Slot Usage (%) 67 | . 67 Engine 14 | . 14 Flight 25 | . 25 Storage 6 | . 6 Energy Gun 17 | . 17 Special Melee Weapon 3 | . 3 Naked Turns . | . . Heaviest Build 13 | 13 13 Greatest Support 26 | 26 26 Greatest Overweight (x) 1 | . 1 Average Overweight (x) . | . . Largest Inventory Capacity 6 | 6 6 Average Capacity 4 | 4 4 Most Carried 6 | 4 6 Average Carried 3 | 3 3 Final Capacity 6 | 6 4 Final Carried 4 | 4 . Class Distribution -------------------- 100% | Mutant Dominant Class ---------------- Mutant | -10/Materials Resources | -11 -10 ----------- Run | Scr Mat Matter Collected 241 | 208 33 Remotely . | . . Salvage Created . | . . Parts . | . . Haulers Intercepted . | . . Recyclers Shooed . | . . Parts Field Recycled . | . . Retrieved Matter . | . . Parts Self-Destructed . | . . Prevented . | . . Kills | -11 -10 ------- Run | Scr Mat Combat Hostiles Destroyed . | . . Classes Destroyed . | . . Best Kill Streak . | . . Combat Bots Only . | . . Max Kills in Single Turn . | . . Gunslinging . | . . Exploded . | . . Melee . | . . Uniques/NPCs Destroyed . | . . Combat | -11 -10 -------- Run | Scr Mat Damage Taken 541 | . 541 Core 255 | . 255 Absorbed by Shields . | . . Core Remaining (%) 100 | 100 . Volleys Fired 8 | . 8 Largest 1 | . 1 Hottest 40 | . 40 Shots Fired 8 | . 8 Gun 8 | . 8 Cannon . | . . Launcher . | . . Special . | . . Kinetic . | . . Thermal 8 | . 8 Explosive . | . . Electromagnetic . | . . Robot Hit Streak 1 | . 1 Robot Miss Streak 3 | . 3 Penetration Max . | . . Secondary Targets . | . . Shots Hit Robots 2 | . 2 Core Hits 1 | . 1 Critical Hits . | . . Critical Kills . | . . Critical Parts Destroyed . | . . Melee Attacks 1 | . 1 Impact . | . . Slashing . | . . Piercing . | . . Sneak Attacks . | . . Combat Hostiles . | . . Follow-up Attacks . | . . Damage Inflicted 21 | . 21 Guns 21 | . 21 Cannons . | . . Explosions . | . . Melee . | . . Ramming . | . . Kinetic . | . . Thermal 21 | . 21 Explosive . | . . Electromagnetic . | . . Impact . | . . Slashing . | . . Piercing . | . . Highest Corruption 1 | . 1 Average Corruption 1 | . 1 Corruption Purged . | . . Overload Shots . | . . Overflow Damage . | . . Projectiles . | . . Explosions . | . . Melee . | . . Knockbacks . | . . Impact . | . . Kinetic . | . . Secondary . | . . Self-Inflicted Damage . | . . Shots . | . . Rammed . | . . Targets Rammed . | . . Kicked . | . . Crushed . | . . Highest Temperature 22 | . 22 Average Temperature 9 | . 9 Received Heat Transfer 24 | . 24 Siege Activations . | . . Robots Corrupted . | . . Combat Hostiles . | . . Parts Fried . | . . Impact Corruptions . | . . Robots Melted . | . . Combat Hostiles . | . . Parts Melted . | . . Heat Transferred 50 | . 50 Parts Sabotaged . | . . Parts Stolen . | . . Parts Stripped . | . . Power Chain Reactions . | . . Missiles Intercepted . | . . Alert | -11 -10 ------- Run | Scr Mat Peak Influence 30 | . 30 Average Influence 4 | . 5 Maximum Alert Level . | . . Low Security (%) 100 | 100 100 Level 1 . | . . Level 2 . | . . Level 3 . | . . Level 4 . | . . Level 5 . | . . High Security . | . . Max Security . | . . Squads Dispatched 2 | . 2 Investigation . | . . Extermination . | . . Reinforcement 2 | . 2 Assault . | . . Garrison . | . . Intercept . | . . Construction Impeded . | . . Haulers Reinforced . | . . Stealth | -11 -10 --------- Run | Scr Mat Distress Signals . | . . Communications Jammed . | . . Distress Signals . | . . Times Spotted 13 | . 13 Peak Tracking Total 7 | . 7 Tactical Retreats 3 | . 3 Traps | -11 -10 ------- Run | Scr Mat Traps Triggered 1 | . 1 Indirectly . | . . Trap Hack Attempts . | . . Triggered . | . . Disarmed . | . . Reprogrammed . | . . Reused . | . . Traps Extracted . | . . Installed . | . . Triggered . | . . Machines | -11 -10 ---------- Run | Scr Mat Machines Disabled . | . . Max in Single Turn . | . . Machines Sabotaged . | . . Garrisons Compromised . | . . Overloaded Fab Kills . | . . Fab Network Shutdowns . | . . Hacking | -11 -10 --------- Run | Scr Mat Machines Accessed . | . . Terminals . | . . Fabricators . | . . Repair Stations . | . . Recycling Units . | . . Scanalyzers . | . . Garrison Access . | . . Total Hacks . | . . Successful . | . . Failed . | . . Catastrophic . | . . Database Lockouts . | . . Manual . | . . Terminals . | . . Fabricators . | . . Repair Stations . | . . Recycling Units . | . . Scanalyzers . | . . Garrison Access . | . . Terminal Hacks . | . . Fabricator Hacks . | . . Repair Station Hacks . | . . Recycling Unit Hacks . | . . Scanalyzer . | . . Garrison Access Hacks . | . . Unauthorized Hacks . | . . Terminals . | . . Fabricators . | . . Repair Stations . | . . Recycling Units . | . . Scanalyzers . | . . Garrison Access . | . . Data Cores Recovered . | . . Used . | . . Hacking Detections . | . . Full Trace Events . | . . Feedback Events . | . . Feedback Blocked . | . . Robot Schematics Acquired . | . . Robots Built . | . . Matter . | . . Time . | . . Total Robot Build Rating . | . . Part Schematics Acquired . | . . Parts Built . | . . Matter . | . . Time . | . . Total Part Build Rating . | . . Parts Repaired . | . . Time . | . . Parts Recycled . | . . Recycled Matter . | . . Retrieved Matter . | . . Retrieved Components . | . . Parts Scanalyzed . | . . Part Schematics Acquired . | . . Parts Damaged . | . . Bothacking | -11 -10 ------------ Run | Scr Mat Used RIF Installer . | . . Robots Hacked 1 | . 1 Non-combat . | . . Combat 1 | . 1 Robot Hacks Applied 1 | . 1 parse_system 1 | . 1 Relay Couplers Released . | . . Robots Rewired . | . . Allies Hacked . | . . Hacks Repelled . | . . Allies | -11 -10 -------- Run | Scr Mat Total Allies . | . . Largest Group . | . . Highest-Rated Group . | . . Highest-Rated Ally . | . . Total Orders . | . . Ally Attacks . | . . Total Damage . | . . Kills . | . . Allies Corrupted . | . . Allies Melted . | . . Intel | -11 -10 ------- Run | Scr Mat Robot Analysis Total . | . . Derelict Logs Recovered . | . . Drone Launches . | . . Drone Recoveries . | . . Exploration | -11 -10 ------------- Run | Scr Mat Turns Passed 331 | 61 270 Spaces Moved 364 | 54 310 Core 12 | 9 3 Treads . | . . Legs . | . . Wheels 50 | 45 5 Hover . | . . Flight 302 | . 302 Fastest Speed 37 | 50 37 Average Speed 60 | 83 56 Slowest Speed 120 | 90 120 Overloaded Moves . | . . Propulsion Burnouts . | . . Robots Hopped 8 | . 8 Cave-ins Triggered . | . . Exploration Rate (%) 28 | 3 53 Regions Visited 1 Branch Regions . Pre-discovered Areas . | . . Known Exits Taken . | . . Unknown Exits Taken 1 | 1 . Scrap Searched . | . . Spaces Dug . | . . Terrain Destroyed . | . . Melee . | . . Projectile . | . . AOE . | . . Actions | -11 -10 --------- Run | Scr Mat Total 459 | 69 390 Wait 60 | . 60 Move 349 | 53 296 Hop 6 | . 6 Pick Up 16 | 10 6 Fast Attach . | . . Attach 10 | 6 4 Detach . | . . Swap 3 | . 3 Drop 6 | . 6 Fire 8 | . 8 Melee 1 | . 1 Ram . | . . Kick . | . . Crush . | . . Escape Stasis . | . . Rewire . | . . Trap . | . . Miscellaneous . | . . Route ------- -11/Scrapyard -10/Materials History --------- Turn | Location | Event 22 | -11/Scrapyard | Discovered new exit (range 16) 62 | -11/Scrapyard | Entered Materials 251 | -10/Materials | Core integrity fell below 50% 296 | -10/Materials | Core integrity fell below 20% 309 | -10/Materials | Lost 3 parts (2n1w) 318 | -10/Materials | Build established: Mutant 332 | -10/Materials | Destroyed by S-10 Pest with Light Assault Rifle Last Messages --------------- 00195_ Door malfunctions. 00195_ EM Pulse Gun destroyed. 00195_ Fusion Modulator explodes. 00195_ U-05 Engineer destroyed. 00195_ Atomic Centrifuge disabled. 00195_ Fusion Modulator explodes. 00195_ K-01 Serf destroyed. 00197_ Acquired 33 matter. 00234_ ALERT: Hostiles spotted, dispatching reinforcements to Terminal M008. 00243_ Acquired Datajack. 00245_ Flight Unit destroyed. 00246_ Jacked S-10 Pest... >>parse_system Reading system data... 00263_ Sml. Laser destroyed. 00278_ Flight Unit destroyed. 00294_ K-01 Serf collects debris. 00309_ Datajack destroyed. 00315_ Flight Unit destroyed. Map ----- +----------------------------------------------------+ | ! + #??????# | | # #??????# | | """ """ ####/##### ###############??????# #####+## | | """ """ # #?# #????????????????????# #[[[ | | """ """ # #?# #?????????##########?# #[[ | | ######### #?# #?????????# #?# #[[ | | ????????# """ #?# #???####### """#?# # | | ????????# """ #?# #???# + R"### ######## | | ????????# """ #?# #???# # """# ##### | | ????############## #???# # # | | ????# ## #???# + """ + | | ????# ## #???#### ## """ # | | ????#= ## #??????# ## """ # ##### | | ????# """ """ ## #??????# ## ###+###????? | | ????# """ """ ## #??????# ###########??????????? | | ????# """ """ ## #??????# #????????????????????? | | ????# ## #??????# #????????????????????? | | ????######/####### #??????# #????????????????????? | | ????????# ######## #????????????????????? | | ????????# ###### #????????????????????? | | ######### #????# ######## #????????????????????? | | # ## #????# #??????# #????????????????????? | | # ## ##???#+######## ????????????????????? | | # """" # #???# ss # #???????????????????? | | # """" # #???# """"" # #???????????????????? | | # """" + T #???# """"" @# ????????????????????? | | # # #???# """"" + ????????????????????? | | ####+### #???# """"" # ???????????????????? | | ???# #?### ###???# """"" # ??????????????????? | | ???# ##### #?????# """"" # ???????????????????? | | ?### """"# #?????# """"" # ???????????????????? | | ?# "[= +?????# ? # ???????????????????? | | ##"" = # ###?###### ???????????????????? | | " " #????????? ???????????????????? | | " ! "####????????????????????????????????? | | =" "##??????????????????????????????????? | | ""* #??????????????????????????????????? | | " ! #??????????????????????????????????? | | "" #??????????????????????????????????? | | = #??????????????????????????????????? | | "" #??????????????????????????????????? | | "" " #??????????????????????????????????? | | "" = #??????????????????????????????????? | | !" #??????????????????????????????????? | | * #??????????????????????????????????? | | ##"" #??????????????????????????????????? | | " #??????????????????????????????????? | | " #??????????????????????????????????? | | # #??????????????????????????????????? | | # #??????????????????????????????????? | +----------------------------------------------------+ Best States ------------- Heat Dissipation 25 Energy Generation 10 Energy Capacity 250 Matter Stores 251 Matter Capacity 300 Sight Range 16 Terrain Scan Density 10 Evasion (%) 62 Item Schematics ----------------- None Robot Schematics ------------------ None Fabricated ------------ Nothing Alien Tech Used ----------------- None Achievements -------------- None Challenges ------------ None Game ------ Seed ReactiveGuidedMicroactuators Manual? 0 Play Time 00:07:09 Cumulative 14.0 hours Start 2020.08.09 @ 17:10:35 End 2020.08.09 @ 17:17:56 Sessions 1 Manual Loads 0 Difficulty Rogue Special Mode None Game No. 24 Rogue 15 Adventurer 9 Explorer 0 Win Type - Total 0 Types 0/0/0/0/0/0/0 Lore% 5 Gallery% 20 Achievement% 14 Wizard Run 0 Options --------- ASCII 0 Keyboard 0 Movement Mouse Keybinds 0 Fullscreen 2 Font 36/X11 Map View 76x50 Tactical HUD 1 Map Filters NONE Filters NONE Steam 1 RUN: 64cdf6ef-433d-4bef-a4cb-b7bed4ce7a95